bitfinex/quotes_BTCUSD_20251010
["timestamp","ask_amount","ask_price","bid_price","bid_amount"]
[1760121053933,0.86822285,117860.0,117850.0,0.20315148]
[1760121054153,1.4681655,117860.0,117850.0,0.20315148]
[1760121054797,1.4681655,117860.0,117850.0,0.24508774]
[1760121055221,1.4671655,117860.0,117850.0,0.24508774]
[1760121055429,1.29743265,117860.0,117850.0,0.24508774]
[1760121055634,1.4671255,117860.0,117850.0,0.24508774]
[1760121057599,1.40045496,117860.0,117850.0,0.24508774]
[1760121058221,1.15897496,117860.0,117850.0,0.24508774]
[1760121058430,1.40045496,117860.0,117850.0,0.24508774]
[1760121059322,1.41674496,117860.0,117850.0,0.24508774]
[1760121059548,1.41674496,117860.0,117850.0,0.04248774]
[1760121059754,1.45667496,117860.0,117850.0,0.00055148]
[1760121060666,1.41674496,117860.0,117850.0,0.06182148]
[1760121060901,0.11601,117860.0,117850.0,0.2135122]
[1760121061125,0.11601,117860.0,117850.0,0.89952084]
[1760121061351,0.11601,117860.0,117850.0,0.36624873]
[1760121062028,0.11601,117860.0,117850.0,0.47952269]
[1760121065435,0.11601,117860.0,117850.0,1.27524349]
[1760121065697,0.01825734,117890.0,117870.0,0.19983035]
[1760121065698,0.25877,117880.0,117870.0,0.19983035]
[1760121065953,0.35877,117880.0,117870.0,0.47894241]
[1760121067181,0.35977,117880.0,117870.0,0.30926396]
[1760121067411,0.35977,117880.0,117870.0,0.15799339]
[1760121067412,1.34239486,117880.0,117870.0,0.15799339]
[1760121067618,1.34239486,117880.0,117870.0,0.10566]
[1760121067835,1.1564908,117880.0,117870.0,0.10566]
[1760121068051,0.53043406,117880.0,117870.0,0.19599]
[1760121068286,0.54667406,117880.0,117870.0,0.10566]
[1760121068503,0.54767406,117880.0,117870.0,0.04439]
[1760121068718,0.54767406,117880.0,117860.0,0.13472]
[1760121068719,0.18668845,117870.0,117860.0,0.13472]
[1760121068933,1.12314925,117870.0,117860.0,0.04439]
[1760121069142,1.12314925,117870.0,117850.0,0.04494148]
[1760121069143,0.18670285,117860.0,117850.0,0.04494148]
[1760121069354,0.52854285,117860.0,117850.0,0.04494148]
[1760121069574,0.52854285,117860.0,117850.0,0.00055148]
[1760121069575,0.58658285,117860.0,117850.0,0.00055148]
[1760121069788,1.38230365,117860.0,117850.0,0.00055148]
[1760121070220,1.38230365,117860.0,117850.0,0.06182148]
[1760121070434,0.9127308,117860.0,117850.0,0.19654148]
[1760121070651,0.35897,117860.0,117850.0,0.36624873]
[1760121070876,0.35897,117860.0,117850.0,0.42449467]
[1760121071090,0.35897,117860.0,117850.0,0.25478742]
[1760121071589,0.11701,117860.0,117850.0,0.42449467]
[1760121071809,0.35897,117860.0,117850.0,0.42449467]
[1760121072263,0.35897,117860.0,117850.0,0.25478742]
[1760121072483,0.54590285,117860.0,117850.0,0.16445742]
[1760121072692,0.28670285,117860.0,117850.0,0.10621148]
[1760121072949,0.52870285,117860.0,117850.0,0.19654148]
[1760121073192,1.34166365,117860.0,117850.0,0.00055148]
[1760121073406,1.80552571,117860.0,117850.0,0.00055148]
[1760121073616,1.89396571,117860.0,117850.0,0.00055148]
[1760121074681,3.00065999,117860.0,117850.0,0.00055148]
[1760121074898,4.65385999,117860.0,117850.0,0.00055148]
[1760121075115,3.71715899,117860.0,117850.0,0.00055148]
[1760121075348,3.3216509,117860.0,117850.0,0.00055148]
[1760121075571,4.00531538,117860.0,117850.0,0.00055148]
[1760121075788,1.94289319,117860.0,117850.0,0.00055148]
[1760121076014,6.93498038,117860.0,117850.0,0.00055148]
[1760121076224,6.94289325,117860.0,117850.0,0.00055148]
[1760121076681,6.9733438,117860.0,117850.0,0.00055148]
[1760121076905,7.1389088,117860.0,117850.0,0.00055148]
[1760121077129,7.3269438,117860.0,117850.0,0.00055148]
[1760121077586,6.6429438,117860.0,117850.0,0.00055148]
[1760121077813,2.3099338,117860.0,117850.0,0.00055148]
[1760121078063,1.6259338,117860.0,117850.0,0.00055148]
[1760121078276,5.4100188,117860.0,117850.0,0.00055148]
[1760121078484,5.44115225,117860.0,117850.0,0.00055148]
[1760121078697,5.46848725,117860.0,117850.0,0.00055148]
[1760121078905,5.55623125,117860.0,117850.0,0.00055148]
[1760121079127,5.29956025,117860.0,117850.0,0.00055148]
[1760121079346,5.6614698,117860.0,117850.0,0.00055148]
[1760121079553,6.93347541,117860.0,117850.0,0.00055148]
[1760121079767,6.94930737,117860.0,117850.0,0.00055148]
[1760121080257,7.12767601,117860.0,117850.0,0.00055148]
[1760121080538,2.11184405,117860.0,117850.0,0.00055148]
[1760121080750,7.1422946,117860.0,117850.0,0.00055148]
[1760121081186,6.7891358,117860.0,117850.0,0.00055148]
[1760121081404,7.0310558,117860.0,117850.0,0.00055148]
[1760121081625,2.4730958,117860.0,117850.0,0.00055148]
[1760121081846,7.4730958,117860.0,117850.0,0.00055148]
[1760121082048,7.3856958,117860.0,117850.0,0.00055148]
[1760121082255,5.994415,117860.0,117850.0,0.00055148]
[1760121082462,7.47324442,117860.0,117850.0,0.00055148]
[1760121082669,6.78928442,117860.0,117850.0,0.00055148]
[1760121083107,7.47324442,117860.0,117850.0,0.00055148]
[1760121083773,7.49007682,117860.0,117850.0,0.00055148]
[1760121084645,2.49007682,117860.0,117850.0,0.00055148]
[1760121084881,7.49007682,117860.0,117850.0,0.00055148]
[1760121085307,7.48216395,117860.0,117850.0,0.00055148]
[1760121085520,2.93427986,117860.0,117850.0,0.00055148]
[1760121085945,7.25031986,117860.0,117850.0,0.00055148]
[1760121086150,7.93419986,117860.0,117850.0,0.00055148]
[1760121086351,2.97987285,117860.0,117850.0,0.00055148]
[1760121086562,7.9494223,117860.0,117850.0,0.00055148]
[1760121086975,7.2655423,117860.0,117850.0,0.00055148]
[1760121087223,6.3975313,117860.0,117850.0,0.00055148]
[1760121087442,5.8459203,117860.0,117850.0,0.00055148]
[1760121087682,5.9426183,117860.0,117850.0,0.00055148]
[1760121087901,6.6449413,117860.0,117850.0,0.00055148]
[1760121088117,1.8383523,117860.0,117850.0,0.00055148]
[1760121088380,6.7525383,117860.0,117850.0,0.00055148]
[1760121088602,6.8356383,117860.0,117850.0,0.00055148]
[1760121088834,6.7628993,117860.0,117850.0,0.00055148]
[1760121089060,6.8531523,117860.0,117850.0,0.00055148]
[1760121089272,2.90205345,117840.0,117830.0,0.11058503]
[1760121089480,3.3319532,117840.0,117830.0,0.13524134]
[1760121089693,3.3521432,117840.0,117830.0,0.13524134]
[1760121089899,3.3521432,117840.0,117830.0,0.06904631]
[1760121090113,3.11537894,117840.0,117830.0,0.12843631]
[1760121090316,3.44553894,117840.0,117830.0,0.12843631]
[1760121091035,3.36523794,117840.0,117830.0,0.22024631]
[1760121091697,3.36523794,117840.0,117830.0,0.21994677]
[1760121092117,3.38572794,117840.0,117830.0,0.06874677]
[1760121092350,3.42501794,117840.0,117830.0,8.581e-05]
[1760121093396,3.37944273,117840.0,117830.0,8.581e-05]
[1760121093789,3.34015273,117840.0,117830.0,8.581e-05]
[1760121094006,3.37944273,117840.0,117830.0,8.581e-05]
[1760121094157,3.34015273,117840.0,117830.0,8.581e-05]
[1760121094568,3.46256479,117840.0,117830.0,8.581e-05]
[1760121094817,0.16973606,117830.0,117820.0,0.0004]
[1760121095024,1.27103337,117830.0,117820.0,0.0004]
[1760121095222,1.29171337,117830.0,117820.0,0.0004]
[1760121095670,1.29171337,117830.0,117820.0,0.05979]
[1760121095891,1.29171337,117830.0,117820.0,0.020039]
[1760121096311,1.24609314,117830.0,117820.0,0.020039]
[1760121096521,1.24609314,117830.0,117820.0,0.079429]
[1760121097206,1.62520314,117830.0,117820.0,0.020039]
[1760121097412,1.68591532,117830.0,117820.0,0.0004]
[1760121097836,1.95403132,117830.0,117820.0,0.0004]
[1760121098061,0.96547126,117820.0,117810.0,0.04479]
[1760121098270,1.22538754,117820.0,117810.0,0.04479]
[1760121098475,1.39535972,117820.0,117810.0,0.10418]
[1760121098692,1.39535972,117820.0,117810.0,0.1452359]
[1760121099346,1.41385628,117820.0,117810.0,0.1462359]
[1760121099548,1.41385628,117820.0,117810.0,0.0878459]
[1760121099758,1.75381628,117820.0,117810.0,0.10618]
[1760121099979,1.42377628,117820.0,117810.0,0.10618]
[1760121100188,1.75381628,117820.0,117810.0,0.10618]
[1760121100395,1.42377628,117820.0,117810.0,0.10618]
[1760121100602,1.75381628,117820.0,117810.0,0.10618]
[1760121100813,1.75381628,117820.0,117810.0,0.14743589]
[1760121101022,1.73295628,117820.0,117810.0,0.14743589]
[1760121101243,1.75381628,117820.0,117810.0,0.14743589]
[1760121102345,1.6931041,117820.0,117810.0,0.14743589]
[1760121102555,1.6931041,117820.0,117810.0,0.04365589]
[1760121102778,1.75409905,117820.0,117810.0,0.0024]
[1760121103025,1.73996531,117820.0,117810.0,0.0024]
[1760121103256,0.16976487,117810.0,117800.0,0.04479]
[1760121103474,1.2863229,117810.0,117800.0,0.1960404]
[1760121103685,1.02437512,117810.0,117800.0,0.1960404]
[1760121103910,1.02437512,117810.0,117800.0,0.23795872]
[1760121104754,0.61301025,117810.0,117800.0,0.408738]
[1760121104967,0.32083723,117810.0,117800.0,0.409738]
[1760121105399,0.85461025,117810.0,117800.0,0.409738]
[1760121105587,0.61301025,117810.0,117800.0,0.409738]
[1760121105719,0.7936093,117810.0,117800.0,0.409738]
[1760121105926,0.01823628,117810.0,117800.0,0.409738]
[1760121106134,0.7936093,117810.0,117800.0,0.409738]
[1760121106981,0.3055879,117810.0,117800.0,0.409738]
[1760121107182,0.0639879,117810.0,117800.0,0.409738]
[1760121107402,0.3055879,117810.0,117800.0,0.52301196]
[1760121107635,0.33609057,117810.0,117800.0,0.52301196]
[1760121108675,0.28272,117810.0,117800.0,0.52301196]
[1760121109496,0.04112,117810.0,117800.0,0.52301196]
[1760121110714,0.57489302,117810.0,117800.0,0.52301196]
[1760121110923,0.74465789,117810.0,117800.0,0.35323268]
[1760121111735,0.74465789,117810.0,117800.0,0.23995872]
[1760121111938,0.74465789,117810.0,117800.0,0.409738]
[1760121112123,0.57489302,117810.0,117800.0,0.409738]
[1760121112297,0.04112,117810.0,117800.0,0.409738]
[1760121112512,0.74465789,117810.0,117800.0,0.409738]
[1760121112720,0.57489302,117810.0,117800.0,0.409738]
[1760121113297,0.60539569,117810.0,117800.0,0.409738]
[1760121113689,0.31322267,117810.0,117800.0,0.409738]
[1760121113885,0.84699569,117810.0,117800.0,0.409738]
[1760121114513,0.31322267,117810.0,117800.0,0.409738]
[1760121114718,0.84699569,117810.0,117800.0,0.409738]
[1760121116388,1.01676056,117810.0,117800.0,0.23995872]
[1760121116592,0.96337417,117810.0,117800.0,0.23995872]
[1760121117319,0.96337417,117810.0,117800.0,0.409738]
[1760121117572,0.96337417,117810.0,117800.0,0.23995872]
[1760121117573,1.03001363,117810.0,117800.0,0.23995872]
[1760121118411,1.63042611,117810.0,117800.0,0.23995872]
[1760121119913,1.63042611,117810.0,117800.0,0.14814872]
[1760121120118,1.63042611,117810.0,117800.0,0.23795872]
[1760121120333,1.65649611,117810.0,117800.0,0.14814872]
[1760121120770,1.70320095,117810.0,117800.0,0.14814872]
[1760121121242,1.70320095,117810.0,117800.0,0.14614872]
[1760121121693,1.70320095,117810.0,117800.0,0.14714872]
[1760121122148,1.70320095,117810.0,117800.0,0.14614872]
[1760121122623,1.70320095,117810.0,117800.0,0.04236872]
[1760121122836,1.70320095,117810.0,117800.0,0.0608404]
[1760121122837,1.46160095,117810.0,117800.0,0.0608404]
[1760121123050,1.76553095,117810.0,117800.0,0.1941104]
[1760121123261,1.67713095,117810.0,117800.0,0.1941104]
[1760121123481,1.76553095,117810.0,117800.0,0.1941104]
[1760121123907,1.79160095,117810.0,117800.0,0.02434744]
[1760121124120,1.79160095,117810.0,117800.0,0.0004504]
[1760121124339,1.82816095,117810.0,117800.0,0.0004504]
[1760121124573,3.18796301,117810.0,117800.0,0.0004504]
[1760121124798,3.21846568,117810.0,117800.0,0.0004504]
[1760121125007,3.24133358,117810.0,117800.0,0.0004504]
[1760121125259,3.19558196,117810.0,117800.0,0.0004504]
[1760121125706,2.86558196,117810.0,117800.0,0.0004504]
[1760121125902,3.19558196,117810.0,117800.0,0.0004504]
[1760121126371,3.21846183,117810.0,117800.0,0.0004504]
[1760121126832,3.21850183,117810.0,117800.0,0.0004504]
[1760121127046,3.21850544,117810.0,117800.0,0.0004504]
[1760121127249,3.18800277,117810.0,117800.0,0.0004504]
[1760121128294,3.15718253,117810.0,117800.0,0.0004504]
[1760121129333,3.14129817,117810.0,117800.0,0.0004504]
[1760121129785,3.01629817,117810.0,117800.0,0.0004504]
[1760121129995,3.10473817,117810.0,117800.0,0.0004504]
[1760121130199,3.14129817,117810.0,117800.0,0.0004504]
[1760121130639,5.42323517,117810.0,117800.0,0.0004504]
[1760121130839,4.39884717,117810.0,117800.0,0.0004504]
[1760121131058,4.35473517,117810.0,117800.0,0.0004504]
[1760121131484,4.32521117,117810.0,117800.0,0.0004504]
[1760121131694,4.50236317,117810.0,117800.0,0.0004504]
[1760121132140,4.30916317,117810.0,117800.0,0.0004504]
[1760121132371,4.37380317,117810.0,117800.0,0.0004504]
[1760121132599,5.62931965,117810.0,117800.0,0.0004504]
[1760121132872,8.26872186,117810.0,117800.0,0.0004504]
[1760121133082,4.79777935,117810.0,117800.0,0.0004504]
[1760121133311,7.49182712,117810.0,117800.0,0.0004504]
[1760121133527,6.21634164,117810.0,117800.0,0.0004504]
[1760121133747,6.57158238,117810.0,117800.0,0.0004504]
[1760121133962,3.02206938,117810.0,117800.0,0.0004504]
[1760121134187,5.84331938,117810.0,117800.0,0.0004504]
[1760121134405,6.04329338,117810.0,117800.0,0.0004504]
[1760121134622,6.46264038,117810.0,117800.0,0.0004504]
[1760121134772,2.72306938,117810.0,117800.0,0.0004504]
[1760121134969,6.44322838,117810.0,117800.0,0.0004504]
[1760121135184,5.53075938,117810.0,117800.0,0.0004504]
[1760121135385,4.41820038,117810.0,117800.0,0.0004504]
[1760121135864,3.97600038,117810.0,117800.0,0.0004504]
[1760121136068,4.06444038,117810.0,117800.0,0.0004504]
[1760121137107,3.73436038,117810.0,117800.0,0.0004504]
[1760121137447,4.04063904,117810.0,117800.0,0.0004504]
[1760121137647,3.95219904,117810.0,117800.0,0.0004504]
[1760121137820,4.01775917,117810.0,117800.0,0.0004504]
[1760121137980,4.04063904,117810.0,117800.0,0.0004504]
[1760121138855,4.06439341,117810.0,117800.0,0.0004504]
[1760121139270,4.50859341,117810.0,117800.0,0.0004504]
[1760121139893,4.17059529,117810.0,117800.0,0.0004504]
[1760121140110,4.48483904,117810.0,117800.0,0.0004504]
[1760121141219,4.5085883,117810.0,117800.0,0.0004504]
[1760121141434,4.53401859,117810.0,117800.0,0.0004504]
[1760121144202,3.73598933,117810.0,117800.0,0.0004504]
[1760121144413,4.06606933,117810.0,117800.0,0.0004504]
[1760121145264,3.75975222,117810.0,117800.0,0.0004504]
[1760121145487,3.75975222,117810.0,117800.0,0.1941104]
[1760121145488,3.94377633,117810.0,117800.0,0.1941104]
[1760121145702,1.20895892,117810.0,117800.0,0.38768672]
[1760121145917,0.90898856,117810.0,117800.0,0.38768672]
[1760121146123,1.15062856,117810.0,117800.0,0.38768672]
[1760121146344,1.66039343,117810.0,117800.0,0.38768672]
[1760121146554,2.09104104,117810.0,117800.0,0.38768672]
[1760121146766,2.25880591,117810.0,117800.0,0.38768672]
[1760121147193,2.25980591,117810.0,117800.0,0.38768672]
[1760121147402,2.25880591,117810.0,117800.0,0.38768672]
[1760121148104,1.05798095,117810.0,117800.0,0.38768672]
[1760121148315,2.08904104,117810.0,117800.0,0.38768672]
[1760121148536,2.09004104,117810.0,117800.0,0.38768672]
[1760121148754,2.25980591,117810.0,117800.0,0.38768672]
[1760121149173,2.24166983,117810.0,117800.0,0.38768672]
[1760121149380,2.24066983,117810.0,117800.0,0.38768672]
[1760121150197,2.07090496,117810.0,117800.0,0.38768672]
[1760121150616,1.47049248,117810.0,117800.0,0.38768672]
[1760121150819,1.14041248,117810.0,117800.0,0.38768672]
[1760121151029,0.7816,117810.0,117800.0,0.38768672]
[1760121151238,1.38201248,117810.0,117800.0,0.38768672]
[1760121151441,0.4416,117810.0,117800.0,0.38768672]
[1760121151651,1.04201248,117810.0,117800.0,0.38768672]
[1760121152700,1.05902248,117810.0,117800.0,0.38768672]
[1760121153758,0.45861,117810.0,117800.0,0.38768672]
[1760121153965,1.05902248,117810.0,117800.0,0.38768672]
[1760121154377,0.81742248,117810.0,117800.0,0.38768672]
[1760121154587,0.21701,117810.0,117800.0,0.50096068]
[1760121155203,0.1,117810.0,117800.0,1.36849528]
[1760121155891,0.1,117810.0,117800.0,1.70849528]
[1760121156370,0.01701,117840.0,117830.0,0.19988796]
[1760121156569,0.01701,117840.0,117830.0,0.48581882]
[1760121156781,0.01701,117840.0,117830.0,1.0862313]
[1760121157137,0.01701,117840.0,117830.0,0.72741882]
[1760121157538,0.60041248,117840.0,117830.0,0.72737882]
[1760121157740,0.41977809,117860.0,117840.0,0.19987171]
[1760121158107,0.41977809,117860.0,117840.0,0.35150944]
[1760121158108,0.1,117850.0,117840.0,0.35150944]
[1760121158326,0.87011973,117850.0,117840.0,0.40712944]
[1760121158449,0.87011973,117850.0,117840.0,0.23740963]
[1760121158659,0.87011973,117850.0,117840.0,0.32062963]
[1760121158875,0.87011973,117850.0,117840.0,0.20735567]
[1760121159286,0.87011973,117850.0,117840.0,0.37707732]
[1760121159772,0.71696032,117850.0,117840.0,0.37707732]
[1760121161595,1.3173728,117850.0,117840.0,0.37707732]
[1760121161802,1.48708005,117850.0,117840.0,0.37707732]
[1760121162000,1.48708005,117850.0,117840.0,0.20735567]
[1760121162405,1.48708005,117850.0,117840.0,0.37707732]
[1760121163433,1.3173728,117850.0,117840.0,0.37707732]
[1760121164055,1.48708005,117850.0,117840.0,0.20735567]
[1760121164274,1.53745743,117850.0,117840.0,0.0996]
[1760121164526,0.50972165,117840.0,117830.0,0.0199888]
[1760121164978,0.16973606,117830.0,117820.0,0.04398]
[1760121164984,1.37056102,117830.0,117820.0,0.04398]
[1760121165159,1.4209284,117830.0,117820.0,0.0996]
[1760121165347,1.4209284,117830.0,117820.0,0.06666]
[1760121165551,0.78871029,117830.0,117820.0,0.06666]
[1760121165762,1.22871029,117830.0,117820.0,0.06666]
[1760121166210,1.25159016,117830.0,117820.0,0.02268]
[1760121166414,0.16975046,117820.0,117810.0,0.04398]
[1760121166673,1.15176469,117820.0,117810.0,0.0996]
[1760121167536,1.16877469,117820.0,117810.0,0.0996]
[1760121167743,0.85653469,117820.0,117810.0,0.18282]
[1760121167981,1.09805469,117820.0,117810.0,0.18282]
[1760121168208,1.09805469,117820.0,117810.0,0.22251787]
[1760121168903,0.85653469,117820.0,117810.0,0.22251787]
[1760121169127,1.09805469,117820.0,117810.0,0.22251787]
[1760121169337,0.11817738,117820.0,117810.0,0.39228274]
[1760121169555,0.11817738,117820.0,117810.0,0.5055567]
[1760121169556,0.01817738,117820.0,117810.0,0.5055567]
[1760121170237,0.83300672,117840.0,117830.0,0.16973606]
[1760121170470,0.93300672,117840.0,117830.0,0.3847897]
[1760121170699,0.69148672,117840.0,117830.0,0.3847897]
[1760121170916,0.66860685,117840.0,117830.0,0.3847897]
[1760121171374,0.1,117840.0,117830.0,0.3847897]
[1760121171569,0.66860685,117840.0,117830.0,0.3847897]
[1760121171789,0.8383285,117840.0,117830.0,0.3847897]
[1760121171987,0.66860685,117840.0,117830.0,0.3847897]
[1760121172199,0.91012685,117840.0,117830.0,0.3847897]
[1760121172410,0.68504265,117840.0,117830.0,0.3847897]
[1760121172617,0.44352265,117840.0,117830.0,0.3847897]
[1760121172824,0.58515469,117850.0,117840.0,0.16972165]
[1760121173029,1.09638194,117850.0,117840.0,0.22612787]
[1760121173660,1.10428045,117850.0,117840.0,0.22612787]
[1760121174181,1.12716032,117850.0,117840.0,0.22612787]
[1760121175621,0.71593307,117850.0,117840.0,0.39584952]
[1760121175891,0.9345732,117850.0,117840.0,0.39584952]
[1760121176042,0.92667469,117850.0,117840.0,0.39584952]
[1760121176248,0.9345782,117850.0,117840.0,0.39584952]
[1760121176448,1.10428545,117850.0,117840.0,0.39584952]
[1760121176657,0.9345782,117850.0,117840.0,0.39584952]
[1760121177097,0.92667469,117850.0,117840.0,0.39584952]
[1760121177301,0.36597233,117850.0,117840.0,0.39584952]
[1760121177477,0.36597233,117850.0,117840.0,0.50912348]
[1760121177478,0.34942449,117850.0,117840.0,0.50912348]
[1760121177682,0.10790449,117850.0,117840.0,0.50912348]
[1760121177850,0.10790479,117850.0,117840.0,0.50912348]
[1760121179385,0.67651164,117850.0,117840.0,0.50912348]
[1760121179533,0.10790479,117850.0,117840.0,0.50912348]
[1760121180172,0.12484489,117850.0,117840.0,0.50912348]
[1760121180396,0.10790479,117850.0,117840.0,0.50912348]
[1760121181029,0.10790479,117850.0,117840.0,0.75060348]
[1760121181576,0.10790479,117850.0,117840.0,0.50912348]
[1760121181787,0.10790479,117850.0,117840.0,0.75060348]
[1760121182313,0.12612345,117850.0,117840.0,0.75060348]
[1760121182510,0.14900332,117850.0,117840.0,0.50912348]
[1760121182727,0.14900332,117850.0,117840.0,0.75060348]
[1760121182927,0.12612345,117850.0,117840.0,0.75060348]
[1760121183496,0.14900332,117850.0,117840.0,0.75060348]
[1760121184331,0.1489089,117850.0,117840.0,0.75060348]
[1760121185201,0.14891486,117850.0,117840.0,0.75060348]
[1760121188147,0.1261348,117850.0,117840.0,0.75060348]
[1760121188370,0.11822405,117850.0,117840.0,0.75060348]
[1760121189907,0.14891396,117850.0,117840.0,0.75060348]
[1760121190877,0.14891396,117850.0,117840.0,0.50912348]
[1760121191114,0.14891396,117850.0,117840.0,0.75056348]
[1760121191345,0.14100411,117850.0,117840.0,0.77607354]
[1760121191969,0.11822405,117850.0,117840.0,0.77607354]
[1760121192625,0.01822405,117850.0,117840.0,0.77607354]
[1760121196499,0.01822405,117850.0,117840.0,0.53463354]
[1760121196717,0.01822405,117850.0,117840.0,0.77607354]
[1760121197976,0.03523405,117850.0,117840.0,0.77607354]
[1760121198193,0.01822405,117850.0,117840.0,1.57194337]
[1760121198403,0.01822405,117850.0,117840.0,0.53463354]
[1760121198608,0.06911727,117870.0,117860.0,0.19984475]
[1760121198858,0.06911727,117870.0,117860.0,0.59806045]
[1760121198859,0.09577937,117870.0,117860.0,0.59806045]
[1760121199070,0.0652767,117870.0,117860.0,0.74533045]
[1760121199269,0.26545782,117870.0,117860.0,0.3341976]
[1760121199474,1.06132765,117870.0,117860.0,0.46236364]
[1760121199684,1.03854759,117870.0,117860.0,0.22092364]
[1760121199904,1.03854759,117870.0,117860.0,0.39061649]
[1760121199905,1.06136086,117870.0,117860.0,0.39061649]
[1760121200319,1.06136086,117870.0,117860.0,0.22092364]
[1760121200525,1.06136086,117870.0,117860.0,0.39061649]
[1760121201162,1.06136086,117870.0,117860.0,0.22092364]
[1760121201378,1.06136086,117870.0,117860.0,0.39061649]
[1760121201590,1.06136086,117870.0,117860.0,0.22192364]
[1760121202050,1.06136086,117870.0,117860.0,0.39161649]
[1760121202254,1.03085819,117870.0,117860.0,0.39161649]
[1760121202467,1.27229819,117870.0,117860.0,0.39161649]
[1760121202669,0.06530991,117870.0,117860.0,0.39161649]
[1760121203536,0.23498836,117870.0,117860.0,0.39161649]
[1760121203967,0.06530991,117870.0,117860.0,0.39161649]
[1760121204222,0.23498836,117870.0,117860.0,0.39161649]
[1760121204705,0.23498836,117870.0,117860.0,0.22192364]
[1760121204929,0.23498836,117870.0,117860.0,0.39161649]
[1760121205128,0.04947537,117870.0,117860.0,0.39161649]
[1760121205384,0.19634055,117870.0,117860.0,0.39161649]
[1760121205598,0.0266621,117870.0,117860.0,0.39161649]
[1760121206697,0.00842104,117870.0,117860.0,0.39161649]
[1760121206905,0.17809949,117870.0,117860.0,0.39161649]
[1760121207075,0.00842104,117870.0,117860.0,0.39161649]
[1760121207450,0.54154423,117870.0,117860.0,0.39161649]
[1760121207652,0.71122268,117870.0,117860.0,0.39161649]
[1760121207856,0.71122268,117870.0,117860.0,0.22192364]
[1760121208075,0.71122268,117870.0,117860.0,0.39161649]
[1760121208279,0.70330587,117870.0,117860.0,0.22192364]
[1760121208477,0.70330587,117870.0,117860.0,0.39161649]
[1760121208858,0.00050423,117870.0,117860.0,0.39161649]
[1760121209119,0.53362742,117870.0,117860.0,0.39161649]
[1760121209706,0.70330587,117870.0,117860.0,0.39161649]
[1760121210496,0.53362742,117870.0,117860.0,0.39161649]
[1760121211327,0.24190423,117870.0,117860.0,0.50489045]
[1760121211567,0.00050423,117870.0,117860.0,1.03801364]
[1760121212196,0.00050423,117870.0,117860.0,1.46637364]
[1760121213148,0.00050423,117870.0,117860.0,1.56637363]
[1760121213361,1e-08,117870.0,117860.0,1.59137362]
[1760121213980,1e-08,117870.0,117860.0,1.59237362]
[1760121214421,1e-08,117870.0,117860.0,1.59137362]
[1760121214629,1e-08,117870.0,117860.0,1.59237362]
[1760121215293,1e-08,117870.0,117860.0,1.59137362]
[1760121215510,1e-08,117870.0,117860.0,0.97189043]
[1760121215711,1e-08,117870.0,117860.0,1.30065043]
[1760121215917,1e-08,117870.0,117860.0,1.83377362]
[1760121216122,1e-08,117870.0,117860.0,1.50601362]
[1760121216532,1e-08,117870.0,117860.0,1.83573362]
[1760121216945,1e-08,117870.0,117860.0,1.50601362]
[1760121217370,1e-08,117870.0,117860.0,1.4382936]
[1760121217774,1e-08,117870.0,117860.0,1.7981655]
[1760121218186,1e-08,117870.0,117860.0,1.89816549]
[1760121219432,1e-08,117870.0,117860.0,1.3650423]
[1760121219846,1e-08,117870.0,117860.0,1.0353223]
[1760121220029,1e-08,117870.0,117860.0,2.06014977]
[1760121220230,1e-08,117870.0,117860.0,2.16014976]
[1760121220991,1e-08,117870.0,117860.0,0.93532231]
[1760121221200,1e-08,117870.0,117860.0,0.96853042]
[1760121221405,1e-08,117870.0,117860.0,1.30985041]
[1760121221625,1e-08,117870.0,117860.0,1.34000231]
[1760121221832,1e-08,117870.0,117860.0,1.24000232]
[1760121222067,1e-08,117870.0,117860.0,1.34000231]
[1760121222569,1e-08,117870.0,117860.0,0.91032232]
[1760121222817,1e-08,117870.0,117860.0,0.57032232]
[1760121223039,1e-08,117870.0,117860.0,0.47773855]
[1760121223249,1e-08,117870.0,117860.0,0.71905855]
[1760121223661,1e-08,117870.0,117860.0,0.74921045]
[1760121224079,1e-08,117870.0,117860.0,0.74721045]
[1760121224283,1e-08,117870.0,117860.0,0.74821045]
[1760121224488,1e-08,117870.0,117860.0,0.74621045]
[1760121225109,1e-08,117870.0,117860.0,1.88131791]
[1760121225321,1e-08,117870.0,117860.0,1.9083179]
[1760121226174,0.08728252,117920.0,117910.0,0.16962089]
[1760121226432,0.10794623,117920.0,117910.0,0.38769522]
[1760121228108,1.0726602,117920.0,117910.0,0.21807433]
[1760121228543,1.0939802,117920.0,117910.0,0.07557433]
[1760121228759,0.16962089,117910.0,117900.0,0.53500528]
[1760121228977,0.97262415,117910.0,117900.0,0.37680734]
[1760121229210,0.96472835,117910.0,117900.0,0.50437206]
[1760121229427,0.96472835,117910.0,117900.0,0.43268734]
[1760121229841,0.96472835,117910.0,117900.0,0.67400734]
[1760121230483,0.96472835,117910.0,117900.0,0.50437206]
[1760121230701,1.01600835,117910.0,117900.0,0.33885]
[1760121230910,0.96472835,117910.0,117900.0,0.59088528]
[1760121231122,0.97262059,117910.0,117900.0,0.17993]
[1760121231359,0.16963528,117900.0,117890.0,0.04165]
[1760121231605,0.96474274,117900.0,117890.0,0.07603412]
[1760121231834,0.99071274,117900.0,117890.0,0.13191412]
[1760121232268,0.99071274,117900.0,117890.0,0.30156379]
[1760121232516,0.99071274,117900.0,117890.0,0.38396379]
[1760121232517,1.20606274,117900.0,117890.0,0.38396379]
[1760121232948,0.16963528,117900.0,117890.0,0.38396379]
[1760121233176,0.41095528,117900.0,117890.0,0.38396379]
[1760121233389,0.41095528,117900.0,117890.0,0.21431412]
[1760121233604,1.23183274,117900.0,117890.0,0.13291412]
[1760121234254,1.20606274,117900.0,117890.0,0.21531412]
[1760121235016,1.21395837,117900.0,117890.0,0.21531412]
[1760121235226,1.20606274,117900.0,117890.0,0.13291412]
[1760121235839,1.23183274,117900.0,117890.0,0.13291412]
[1760121236049,1.04362026,117900.0,117890.0,0.001]
[1760121236263,1.32809026,117900.0,117890.0,0.001]
[1760121236473,1.33841026,117900.0,117890.0,0.001]
[1760121236655,1.66809026,117900.0,117890.0,0.001]
[1760121237147,1.66809026,117900.0,117890.0,0.05688]
[1760121237588,1.66809026,117900.0,117890.0,0.01931]
[1760121238041,1.33841351,117900.0,117890.0,0.01931]
[1760121238267,1.66809351,117900.0,117890.0,0.01931]
[1760121238724,1.71330351,117900.0,117890.0,0.01931]
[1760121238945,1.71330351,117900.0,117890.0,0.001]
[1760121239158,1.71330351,117900.0,117890.0,0.05648]
[1760121239159,1.66809351,117900.0,117890.0,0.05648]
[1760121239345,1.66809351,117900.0,117890.0,0.001]
[1760121240462,1.71330351,117900.0,117890.0,0.001]
[1760121240736,1.73152313,117900.0,117890.0,0.001]
[1760121240949,1.40184313,117900.0,117890.0,0.001]
[1760121241178,1.74733318,117900.0,117890.0,0.001]
[1760121241635,2.08812588,117900.0,117890.0,0.001]
[1760121242126,2.77544994,117900.0,117890.0,0.001]
[1760121242355,2.89828025,117900.0,117890.0,0.001]